Cogmind - Beta 16 @@@ ROGUE MODE // 2025.11.07 @ 20:34:30 Player: Cameron Result: Destroyed by C7-6S0(R) with Subdweller Laser Performance ------------- Evolutions (0) 0 Regions Visited (2) 400 Robots Destroyed (19) 95 Value Destroyed (402) 402 Prototype IDs (0) 0 Alien Tech Used (0) 0 Bonus (0) 0 TOTAL SCORE: 897 Bonus ------- None Cogmind --------- Core Integrity 0/250 Matter 285/300 Energy 98/100 System Corruption 0% Temperature Cool (6) Movement Rolling (120) Ox1 Location -10/Subcaves Parts ------- > --- POWER (1) -------- (None) > --- PROPULSION (2) --- Subdweller Monowheel Flight Unit > --- UTILITY (2) ------ Scrap Shield > --- WEAPON (2) ------- Beam Cannon > --- INVENTORY (5) ---- Flight Unit High-capacity Matter Pod (61) Weight Redist. System Peak State ------------ > --- POWER ------------ Light Ion Engine > --- PROPULSION ------- Flight Unit Flight Unit > --- UTILITY ---------- Weight Redist. System Hacking Suite > --- WEAPON ----------- Light Cannon Mining Laser > --- INVENTORY -------- Light Ion Engine Flight Unit Flight Unit High-capacity Matter Pod Beam Cannon [Rating: 10] Favorites ----------- Power Light Ion Engine Engine Light Ion Engine Propulsion Flight Unit Leg Aluminum Leg Wheel Subdweller Monowheel Flight Unit Flight Unit Utility Small Storage Unit Device Weight Redist. System Storage Small Storage Unit Hackware Hacking Suite Protection Scrap Shield Weapon Medium Laser Energy Gun Medium Laser Energy Cannon Beam Cannon Ballistic Cannon Light Cannon Special Weapon Mining Laser Impact Weapon Hammer Build | -11 -10 -10 ------- Run | Yrd Mat Sub Slots Evolved . | . . . Power . | . . . Propulsion . | . . . Utility . | . . . Weapon . | . . . Parts Attached 26 | 6 15 5 Power 4 | 1 2 1 Engine 4 | 1 2 1 Core . | . . . Reactor . | . . . Propulsion 9 | 2 5 2 Treads . | . . . Leg 3 | 2 1 . Wheel 1 | . . 1 Hover . | . . . Flight 5 | . 4 1 Utility 6 | 1 4 1 Device 1 | . 1 . Storage 2 | 1 1 . Processor . | . . . Hackware 1 | . 1 . Protection 2 | . 1 1 Artifact . | . . . Weapon 7 | 2 4 1 Energy Gun 2 | 2 . . Energy Cannon 1 | . . 1 Ballistic Gun . | . . . Ballistic Cannon 1 | . 1 . Launcher . | . . . Special Weapon 1 | . 1 . Impact Weapon 2 | . 2 . Slashing Weapon . | . . . Piercing Weapon . | . . . Special Melee Weapon . | . . . Unidentified Prototypes . | . . . Parts Lost 10 | . 6 4 Power 2 | . 1 1 Propulsion 5 | . 4 1 Utility . | . . . Weapon 3 | . 1 2 Highest Loss Streak 4 | . 4 2 To Critical Strikes . | . . . Average Backups 5 | 3 6 3 Power . | 1 . . Propulsion 1 | 1 2 1 Utility . | . . 1 Weapon 1 | . 2 . Tool/Special . | . . . Unused Backups 8 | . 8 . Power . | . . . Propulsion 4 | . 4 . Utility . | . . . Weapon 4 | . 4 . Tool/Special . | . . . Average Slot Usage (%) 85 | . 82 95 Engine 13 | . 13 12 Leg 10 | . 14 . Flight 16 | . 13 26 Device 4 | . 2 12 Storage 6 | . 8 . Hackware 6 | . 4 12 Energy Gun 8 | . 11 . Energy Cannon 1 | . . 6 Ballistic Cannon 7 | . 6 7 Special Weapon 6 | . 4 12 Impact Weapon 1 | . 2 . Peak Build Rating 10 | 6 10 10 Average Rating 6 | 3 6 9 On Entrance 5 | . 6 10 Avg Prop Armor Cover (%) 3 | . 4 1 Naked Turns . | . . . Heaviest Build 21 | 14 14 21 Greatest Support 20 | 20 20 20 Greatest Overweight (x) 2 | 2 2 1 Average Overweight (x) . | 1 . . Largest Inventory Capacity 8 | 8 8 5 Average Capacity 6 | 7 6 5 Most Carried 8 | 7 8 5 Average Carried 5 | 3 6 4 Final Capacity 8 | 8 5 5 Final Carried 4 | 4 4 3 Class Distribution -------------------- 67% | Mutant 32% | Scavenger-Mutant Dominant Class ---------------- Mutant | -10/Materials Scavenger-Mutant | -10/Subcaves Resources | -11 -10 -10 ----------- Run | Yrd Mat Sub Matter Collected 705 | 244 334 127 Remotely . | . . . Salvage Created 531 | . 450 81 Parts 28 | . 23 5 Haulers Intercepted 1 | . 1 . Recyclers Shooed 1 | . 1 . Parts Field Recycled . | . . . Retrieved Matter . | . . . Parts Self-Destructed 2 | . . 2 Prevented . | . . . Parts Restored . | . . . Kills | -11 -10 -10 ------- Run | Yrd Mat Sub Combat Hostiles Destroyed 13 | . 11 2 Guns 7 | . 7 . Cannons 4 | . 2 2 Classes Destroyed 7 | . 6 1 Hauler 1 | . 1 . Mechanic 1 | . 1 . Operator 1 | . 1 . Watcher 3 | . 3 . Swarmer 6 | . 6 . Grunt 5 | . 5 . Subdweller 2 | . . 2 Best Kill Streak 9 | . 9 1 Combat Bots Only 9 | . 9 1 Max Kills in Single Turn 1 | . 1 1 Gunslinging . | . . . Exploded . | . . . Melee . | . . . Uniques/NPCs Destroyed . | . . . Combat | -11 -10 -10 -------- Run | Yrd Mat Sub Hostile Shots Fired 108 | . 79 29 Missed 20 | . 9 11 Hits 88 | . 70 18 Projectile 88 | . 70 18 Damage Taken 1134 | . 733 401 Core 263 | . 160 103 Absorbed by Shields . | . . . Core Remaining (%) 100 | 100 . . Volleys Fired 59 | . 42 17 Largest 2 | . 2 1 Hottest 100 | . 100 60 Shots Fired 75 | . 58 17 Gun 34 | . 34 . Cannon 41 | . 24 17 Launcher . | . . . Special . | . . . Kinetic 30 | . 24 6 Thermal 45 | . 34 11 Explosive . | . . . Electromagnetic . | . . . Robot Hit Streak 6 | . 5 6 Robot Miss Streak 3 | . 3 2 Penetration Max . | . . . Secondary Targets 1 | . 1 . Max Gunslinging Chain 1 | . 1 . Shots Hit Robots 51 | . 37 14 Core Hits 22 | . 17 5 Critical Kills . | . . . Critical Parts Destroyed 1 | . 1 . Critical Strikes 3 | . 3 . Burn 1 | . 1 . Blast 1 | . 1 . Smash 1 | . 1 . Melee Attacks 3 | . 3 . Impact 3 | . 3 . Slashing . | . . . Piercing . | . . . Sneak Attacks . | . . . Combat Hostiles . | . . . Follow-up Attacks . | . . . Damage Inflicted 857 | . 613 244 Guns 238 | . 238 . Cannons 535 | . 291 244 Explosions . | . . . Melee 82 | . 82 . Ramming 2 | . 2 . Kinetic 378 | . 291 87 Thermal 395 | . 238 157 Explosive . | . . . Electromagnetic . | . . . Impact 82 | . 82 . Slashing . | . . . Piercing . | . . . Highest Corruption . | . . . Average Corruption . | . . . Corruption Purged . | . . . Corruption Blocked . | . . . Overload Shots . | . . . Overflow Damage 38 | . 38 . Projectiles . | . . . Explosions . | . . . Melee 38 | . 38 . Knockbacks 4 | . 3 1 Impact 1 | . 1 . Kinetic 3 | . 2 1 Secondary . | . . . Self-Inflicted Damage . | . . . Shots . | . . . Rammed . | . . . Targets Rammed 1 | . 1 . Kicked 1 | . 1 . Crushed . | . . . Highest Temperature 549 | . 549 1 Average Temperature 201 | . 205 1 Received Heat Transfer 366 | . 303 63 Effects 7 | . 7 . Shutdowns 2 | . 2 . Interference 1 | . 1 . Matter Decay 2 | . 2 . Short Circuit 1 | . 1 . Damage (minor) 1 | . 1 . Siege Activations . | . . . Martial Activations . | . . . Shielding Activations . | . . . Robots Disrupted . | . . . Combat Hostiles . | . . . Robots Corrupted 1 | . 1 . Combat Hostiles 1 | . 1 . Parts Fried 1 | . 1 . Impact Corruptions 2 | . 2 . Robots Melted 1 | . 1 . Combat Hostiles 1 | . 1 . Parts Melted 2 | . 1 1 Heat Transferred 1110 | . 777 333 Parts Sabotaged . | . . . Parts Stolen . | . . . Parts Stripped . | . . . Power Chain Reactions . | . . . Alert | -11 -10 -10 ------- Run | Yrd Mat Sub Maximum Alert Level . | . . . Low Security (%) 100 | 100 100 . Level 1 . | . . . Level 2 . | . . . Level 3 . | . . . Level 4 . | . . . Level 5 . | . . . High Security . | . . . Max Security . | . . . Peak Influence 180 | . 180 . Initial . | . . . Average 72 | . 81 . Influence Increases 341 | . 341 . Destroy 0b10 Robot/C 220 | . 220 . Destroy 0b10 Robot/NC 30 | . 30 . Destroy Leader 48 | . 48 . Successful Hack 13 | . 13 . Partial Spotted 30 | . 30 . Influence Decreases 341 | . 236 105 Entered New Map 51 | . . 51 Time Decay 216 | . 176 40 Lost Part 74 | . 60 14 Squads Dispatched 1 | . 1 . Investigation 1 | . 1 . Extermination . | . . . Reinforcement . | . . . Assault . | . . . Garrison . | . . . Intercept . | . . . Searches Triggered . | . . . Construction Impeded . | . . . Haulers Reinforced . | . . . Active Scanning Responses . | . . . Cargo Convoy Interrupts . | . . . Stealth | -11 -10 -10 --------- Run | Yrd Mat Sub Distress Signals . | . . . Communications Jammed . | . . . Distress Signals . | . . . Times Spotted 26 | . 20 6 Peak Tracking Total 5 | . 5 3 Tactical Retreats . | . . . Traps | -11 -10 -10 ------- Run | Yrd Mat Sub Traps Triggered 1 | . 1 . Indirectly . | . . . Trap Hack Attempts . | . . . Triggered . | . . . Disarmed . | . . . Reprogrammed . | . . . Reused . | . . . Traps Extracted . | . . . Installed . | . . . Triggered . | . . . Machines | -11 -10 -10 ---------- Run | Yrd Mat Sub Machines Disabled . | . . . Max in Single Turn . | . . . Machines Repaired . | . . . Machines Dismantled . | . . . Machines Sabotaged . | . . . Overloaded Fab Kills . | . . . Hacking | -11 -10 -10 --------- Run | Yrd Mat Sub Machines Accessed 4 | . 4 . Terminals 3 | . 3 . Fabricators . | . . . Repair Stations 1 | . 1 . Recycling Units . | . . . Scanalyzers . | . . . Garrison Access . | . . . Total Hacks 15 | . 15 . Successful 7 | . 7 . Failed 8 | . 8 . Catastrophic 3 | . 3 . Database Lockouts . | . . . Manual 3 | . 3 . Terminals 12 | . 12 . Fabricators . | . . . Repair Stations 3 | . 3 . Recycling Units . | . . . Scanalyzers . | . . . Garrison Access . | . . . Terminal Hacks 6 | . 6 . Terminal Index 1 | . 1 . Repair Station Index 1 | . 1 . Locate Traps 2 | . 2 . Surveillance Status 1 | . 1 . Zone Layout 1 | . 1 . Fabricator Hacks . | . . . Repair Station Hacks 1 | . 1 . Scan Component 1 | . 1 . Recycling Unit Hacks . | . . . Scanalyzer . | . . . Garrison Access Hacks . | . . . Unauthorized Hacks . | . . . Terminals . | . . . Fabricators . | . . . Repair Stations . | . . . Recycling Units . | . . . Scanalyzers . | . . . Garrison Access . | . . . Data Cores Recovered . | . . . Used . | . . . Hacking Detections 4 | . 4 . Full Trace Events 1 | . 1 . Feedback Events . | . . . Feedback Blocked . | . . . Robot Schematics Acquired . | . . . Robots Built . | . . . Authchips . | . . . Time . | . . . Total Robot Build Rating . | . . . Part Schematics Acquired . | . . . Parts Built . | . . . Authchips . | . . . Time . | . . . Total Part Build Rating . | . . . Part Studies Acquired . | . . . Parts Repaired . | . . . Time . | . . . Parts Recycled . | . . . Recycled Matter . | . . . Retrieved Matter . | . . . Retrieved Components . | . . . Parts Scanalyzed . | . . . Part Schematics Acquired . | . . . Parts Damaged . | . . . Bothacking | -11 -10 -10 ------------ Run | Yrd Mat Sub Used RIF Installer . | . . . Robots Hacked . | . . . Non-combat . | . . . Combat . | . . . Robot Hacks Applied . | . . . Relay Couplers Released . | . . . Fabnet Peak Effective % . | . . . Robots Rewired . | . . . Allies Hacked . | . . . Hacks Repelled . | . . . Allies | -11 -10 -10 -------- Run | Yrd Mat Sub Total Allies . | . . . Largest Group . | . . . Highest-Rated Group . | . . . Highest-Rated Ally . | . . . Total Orders . | . . . Ally Attacks . | . . . Total Damage . | . . . Kills . | . . . Allies Corrupted . | . . . Allies Melted . | . . . Intel | -11 -10 -10 ------- Run | Yrd Mat Sub Active Infowar (turns) . | . . . Robot Analysis Total . | . . . Derelict Logs Recovered . | . . . Drone Launches . | . . . Drone Recoveries . | . . . Exploration | -11 -10 -10 ------------- Run | Yrd Mat Sub Turns Passed 770 | 72 531 167 Spaces Moved 877 | 38 569 270 Core 26 | 24 2 . Treads . | . . . Legs 175 | 14 161 . Wheels 13 | . . 13 Hover . | . . . Flight 663 | . 406 257 Fastest Speed 37 | 50 37 37 Average Speed 59 | 128 64 40 Slowest Speed 200 | 150 200 120 Overloaded Moves . | . . . Propulsion Burnouts . | . . . Robots Hopped 3 | . 3 . Potential Cave-ins . | . . . Cave-ins Triggered . | . . . Exploration Rate (%) 33 | 5 77 17 Regions Visited 2 Branch Regions 1 Pre-discovered Areas . | . . . Known Exits Taken . | . . . Unknown Exits Taken 2 | 1 1 . Scrap Searched . | . . . Spaces Dug . | . . . Terrain Destroyed . | . . . Melee . | . . . Projectile . | . . . AOE . | . . . Terrain Rammed . | . . . Walls Destroyed . | . . . Machines Disabled . | . . . Actions | -11 -10 -10 --------- Run | Yrd Mat Sub Total 1042 | 59 671 312 Wait 21 | 9 1 11 Move 869 | 37 562 270 Hop 3 | . 3 . Pick Up 30 | 7 19 4 Fast Attach 11 | 3 8 . Attach 13 | 3 7 3 Detach 3 | . 2 1 Swap 7 | . 5 2 Drop 22 | . 18 4 Fire 59 | . 42 17 Melee 3 | . 3 . Ram . | . . . Kick 1 | . 1 . Crush . | . . . Escape Stasis . | . . . Rewire . | . . . Trap . | . . . Miscellaneous . | . . . Route ------- -11/Scrapyard -10/Materials (discovered 5 exits: [*Mat x3] / [*Min] / [*Sub]) -10/Subcaves History --------- Turn | Location | Event 59 | -11/Scrapyard | Discovered new exit (range 12) 73 | -11/Scrapyard | Entered Materials 207 | -10/Materials | Discovered new exit (range 13) 304 | -10/Materials | Build established: Mutant 349 | -10/Materials | Lost 4 parts (1p2n1w) 350 | -10/Materials | Core integrity fell below 50% 351 | -10/Materials | Destroyed 9 combat bots 461 | -10/Materials | Discovered new exit (range 10) 488 | -10/Materials | Discovered new exit (range 16) 580 | -10/Materials | Discovered new exit (range 7) 590 | -10/Materials | Discovered new exit (range 16) 604 | -10/Materials | Entered Subcaves 640 | -10/Subcaves | Shifting Twisted Machinery released Sub. Monowheel 640 | -10/Subcaves | Shifting Twisted Machinery released Mak. Light Armor Plating 647 | -10/Subcaves | A swath of the cavern ceiling suddenly collapsed 752 | -10/Subcaves | Core integrity fell below 20% 771 | -10/Subcaves | Destroyed by C7-6S0(R) with Subdweller Laser Last Messages --------------- 00630_ Subatomizers dissect the Sub. Monowheel. Sub. Monowheel falls loose from the Twisted Machinery. Mak. Light Armor Plating falls loose from the Twisted Machinery. A swath of the cavern ceiling suddenly collapses. 00695_ XV-HDN(R) knocked back. 00697_ Lgt. Cannon destroyed. 00701_ Flight Unit destroyed. 00702_ Sub. Optics melted. 00702_ XV-HDN(R) destroyed. 00708_ Acquired 43 matter. 00709_ Acquired Sub. Monowheel. 00720_ GC-W8M(u) builds Twisted Machinery. 00735_ FZ-CV1(u) tweaks Twisted Machinery. 00751_ Lgt. Ion Engine destroyed. 00752_ Discarded Hacking Suite. 00753_ Mining Laser destroyed. 00760_ FZ-CV1(u) tweaks Twisted Machinery. Map ----- +----------------------------------------------------+ | ?????????????????????????????????????????????????? | | ?????????????????????????????????????????????????? | | ?????? ?????????????????????????????????????????? | | ???? % ##???????????????????????????????????????? | | ???? # ??????????????????????????????????????? | | ????? $ #?????????????????????????????????????? | | ?????? ?????????????????????????????????????? | | ??????? ????????????????????????????????????? | | ????????# ?????????????????????????????????#"?? | | ?????????# #?????????????????????????????"## "?? | | ??????????# ####?????????????????????????" ?? | | ??????????? ?????????????????????????? ??? | | ???????????? ??????????????????????????# ??? | | ?????????????# #???????????? ?????????????# ??? | | ?????????????#" #????????##?# ????????????## #??? | | ????????????##" ##???????# # ???????????? ??? | | ???????????## "" ###?????# ????? ##???# #??? | | ???????????# " ####??# ????? ##??#"""#??? | | ???????????## "" #?## #?????# ##?# #??? | | ????????????## ## #?? #???### ""#?# #??? | | ?????????????# # #?? ##?## "" ### ##?? | | ???????????? ## #"##??# ### " "## ##? | | ??????????? ## # ???# """" #? | | ?????????? ## ###### "" ## | | ????????? #?## R ## """ # | | ???????? ??# @ "" ## | | ????????# ??## " #? | | ????????### ??# # ## # ##" #? | | ??????????#????########## ### #? | | ????????????????????????###### ###""" ##? | | ?????????????????????????????# """ ##?? | | ?????????????????????????????# ## ####??? | | ?????????????????????????????# ## ##?????? | | ?????????????????????????????# ## ####???? | | ?????????????????????????????# ##### #???? | | ?????????????????????????????# #?## ##??? | | ?????????????????????????????## #?# #??? | | ??????????????????????????????# ##?## ####??? | | ??????????????????????????????# ####### #?????? | | ??????????????????????????????###### ### #?????? | | ?????????????????????????????###### ?# ##??##? | | ?????????????????????????????# ## #?# #? | | ??????????????????????????????# ##? #? | | ?????????????????????????????## ##?? #? | | ?????????????????????????????# #??? #? | | ?????????????????????????????## ### #### #? | | ????????????????????????????????#### #? | | ????????????????????????????????# ## | | ????????????????????????????????# ## # | | ????????????????????????????????#####?# # | +----------------------------------------------------+ Best States ------------- Heat Dissipation 25 Energy Generation 10 Energy Capacity 250 Matter Stores 300 Matter Capacity 300 Sight Range 16 Terrain Scan Density 10 Armor Coverage 800 Evasion (%) 62 Offensive Hacking 10 Item Schematics ----------------- None Robot Schematics ------------------ None Fabricated ------------ Nothing Repaired ---------- Nothing Studied --------- None Alien Tech Used ----------------- None Achievements -------------- None Challenges ------------ None Game ------ Seed TacticalBarrageInverter Manual? 0 Play Time 00:12:31 Cumulative 59.3 hours Start 2025.11.07 @ 18:40:13 End 2025.11.07 @ 20:34:30 Sessions 2 Manual Loads 0 Difficulty Rogue Special Mode None Game No. 62 Rogue 62 Adventurer 0 Explorer 0 Win Type - Total 1 Types 1/0/0/0/0/0/0/0/0/0 Lore% 37 Gallery% 39 Achievement% 31 Wizard Run 0 Options --------- Layout 1 ASCII 0 Keyboard 0 Movement Numpad Keybinds 0 Fullscreen 2 Font 32/SmallcapsGlow Map View 50x35 Zoom Use 0% Tactical HUD 1 Map Filters NONE Filters NONE Steam 1 RUN: 51a15914-1f99-41d9-b892-ca2f056a3bdf